bitfinex/quotes_BTCUSD_20251205
["timestamp","ask_amount","ask_price","bid_price","bid_amount"]
[1764956214935,0.22501743,88882.0,88862.0,0.02846]
[1764956215132,0.22501743,88882.0,88858.0,0.01097]
[1764956215133,0.30644543,88882.0,88858.0,0.01097]
[1764956215364,0.3583775,88882.0,88858.0,0.01097]
[1764956215571,0.6813775,88882.0,88860.0,0.01125365]
[1764956215797,0.71162545,88882.0,88862.0,0.0112534]
[1764956216015,0.71162545,88882.0,88861.0,0.01125353]
[1764956216426,0.79942652,88882.0,88860.0,0.23632678]
[1764956216674,0.71162545,88882.0,88854.0,0.01125441]
[1764956216871,0.87233945,88882.0,88853.0,0.24731437]
[1764956217052,0.82018751,88882.0,88853.0,0.24731437]
[1764956217263,0.8824221,88882.0,88853.0,0.01097]
[1764956217467,0.8824221,88882.0,88859.0,0.01125378]
[1764956217679,0.8420915,88882.0,88859.0,0.23632865]
[1764956217890,0.99212716,88882.0,88853.0,0.01097]
[1764956218096,0.95179656,88882.0,88850.0,0.0004]
[1764956219081,1.01229246,88882.0,88850.0,0.0004]
[1764956219506,0.95181616,88882.0,88850.0,0.0004]
[1764956220834,0.80228711,88882.0,88855.0,0.23633817]
[1764956221038,0.80228711,88882.0,88850.0,0.0004]
[1764956221039,0.8421111,88882.0,88850.0,0.74147384]
[1764956221199,0.90261463,88882.0,88850.0,0.0004]
[1764956221403,0.90261463,88882.0,88851.0,0.01125479]
[1764956221404,0.8421111,88882.0,88851.0,0.01125479]
[1764956221600,0.8421111,88882.0,88850.0,0.0004]
[1764956221601,0.90261155,88882.0,88850.0,0.0004]
[1764956221866,1.01231661,88882.0,88850.0,0.0004]
[1764956222074,1.01231661,88882.0,88880.0,1e-08]
[1764956222075,1.01433915,88882.0,88880.0,1e-08]
[1764956222275,1.01433915,88882.0,88850.0,0.0004]
[1764956222276,0.22509594,88851.0,88850.0,0.0004]
[1764956222478,0.57640458,88851.0,88850.0,0.00050294]
[1764956222683,0.92925266,88851.0,88850.0,0.00050294]
[1764956222947,0.95115665,88851.0,88850.0,0.00050294]
[1764956223365,0.92925266,88851.0,88850.0,0.00050294]
[1764956223567,0.95115665,88851.0,88850.0,0.00050294]
[1764956223774,1.00840974,88851.0,88850.0,0.00050294]
[1764956223981,0.92084261,88851.0,88850.0,0.00050294]
[1764956224205,0.96114105,88851.0,88850.0,0.00050294]
[1764956224341,0.92084261,88851.0,88850.0,0.00050294]
[1764956225310,0.96146161,88851.0,88850.0,0.00050294]
[1764956225505,0.9843656,88851.0,88850.0,0.00050294]
[1764956225737,1.09407066,88851.0,88850.0,0.00050294]
[1764956225945,1.11246511,88851.0,88850.0,0.00050294]
[1764956226161,1.09407066,88851.0,88850.0,0.00050294]
[1764956226533,1.13428937,88851.0,88850.0,0.00050294]
[1764956226739,1.09407066,88851.0,88850.0,0.00050294]
[1764956226970,1.01362767,88851.0,88850.0,0.00050294]
[1764956227173,1.03154767,88851.0,88850.0,0.00050294]
[1764956227378,1.01362767,88851.0,88850.0,0.00050294]
[1764956227518,1.03154767,88851.0,88850.0,0.00050294]
[1764956227933,1.03154767,88851.0,88850.0,0.00144962]
[1764956228355,0.95197429,88851.0,88850.0,0.00144962]
[1764956228564,0.92184261,88851.0,88850.0,0.00144962]
[1764956228808,0.92084261,88851.0,88850.0,0.00144962]
[1764956229205,0.92184261,88851.0,88850.0,0.00144962]
[1764956229403,0.92184261,88851.0,88831.0,0.001079]
[1764956229404,0.24703541,88837.0,88831.0,0.001079]
[1764956229580,0.24703541,88837.0,88836.0,0.00021912]
[1764956229581,0.33512864,88837.0,88836.0,0.00021912]
[1764956229781,0.36271864,88837.0,88836.0,0.00021912]
[1764956230001,0.3627186,88837.0,88836.0,0.00064679]
[1764956230206,0.35226018,88837.0,88836.0,0.00064679]
[1764956231437,0.86691418,88837.0,88836.0,0.00064679]
[1764956231579,0.72921908,88837.0,88836.0,0.00064679]
[1764956231934,0.73021908,88837.0,88836.0,0.00064679]
[1764956232235,0.73021908,88837.0,88831.0,0.001079]
[1764956232236,2.57004808,88832.0,88831.0,0.001079]
[1764956232380,2.59939898,88832.0,88831.0,0.001079]
[1764956232582,2.62698898,88832.0,88831.0,0.001079]
[1764956233092,0.24710131,88811.0,88804.0,4.012e-05]
[1764956233318,0.27339732,88811.0,88804.0,4.012e-05]
[1764956233517,0.62398732,88811.0,88804.0,4.012e-05]
[1764956233718,0.65633643,88811.0,88804.0,4.012e-05]
[1764956233953,0.22521254,88805.0,88800.0,0.0004]
[1764956234105,0.22521254,88805.0,88770.0,0.0004]
[1764956234106,0.22527342,88781.0,88770.0,0.0004]
[1764956234307,0.22527342,88781.0,88780.0,0.00079732]
[1764956234308,0.27535342,88781.0,88780.0,0.00079732]
[1764956234507,0.30294342,88781.0,88780.0,0.00079732]
[1764956234942,0.32484741,88781.0,88780.0,0.00079732]
[1764956235213,0.62594342,88781.0,88780.0,0.00079732]
[1764956235333,0.64784741,88781.0,88780.0,0.00079732]
[1764956236219,1.49050042,88781.0,88780.0,0.00079732]
[1764956236469,1.51240441,88781.0,88780.0,0.00079732]
[1764956236680,1.51340441,88781.0,88780.0,0.00079732]
[1764956236871,1.49150042,88781.0,88780.0,0.00079732]
[1764956237253,1.47358042,88781.0,88780.0,0.00079732]
[1764956237599,0.82314342,88781.0,88780.0,0.00079732]
[1764956237876,0.70664242,88781.0,88780.0,0.00079732]
[1764956238077,0.30398342,88781.0,88780.0,0.00079732]
[1764956238540,0.38501586,88781.0,88780.0,0.00079732]
[1764956238745,0.38401586,88781.0,88780.0,0.00079732]
[1764956238920,0.38501586,88781.0,88780.0,0.00079732]
[1764956239562,0.30298342,88781.0,88780.0,0.00079732]
[1764956239886,0.32488741,88781.0,88780.0,0.00079732]
[1764956240336,0.30298342,88781.0,88780.0,0.00079732]
[1764956240533,0.23853342,88781.0,88780.0,0.00079732]
[1764956240707,0.22527342,88781.0,88780.0,0.00079732]
[1764956240908,0.22527306,88782.0,88780.0,0.00079732]
[1764956241136,0.0189,88781.0,88780.0,0.00079732]
[1764956241377,0.04649,88781.0,88780.0,0.00079732]
[1764956242401,0.22527306,88782.0,88780.0,0.00079732]
[1764956242643,0.23653421,88783.0,88780.0,0.00241019]
[1764956242842,0.04603935,88783.0,88780.0,0.00241019]
[1764956243047,0.04603935,88783.0,88780.0,0.01367398]
[1764956243250,0.01126227,88792.0,88786.0,0.01126303]
[1764956243505,0.23651426,88790.0,88786.0,0.00161287]
[1764956243666,0.0189,88787.0,88786.0,0.00161287]
[1764956243839,0.00247992,88787.0,88786.0,0.01247287]
[1764956244041,0.24319559,88796.0,88786.0,0.01247287]
[1764956244042,0.01126214,88793.0,88789.0,0.01126265]
[1764956244324,0.01126214,88793.0,88789.0,0.01287552]
[1764956244325,0.23650589,88793.0,88789.0,0.01287552]
[1764956244716,0.23650589,88793.0,88789.0,0.23812657]
[1764956244921,0.23648473,88801.0,88797.0,0.236492]
[1764956245124,0.22520641,88808.0,88805.0,0.01126062]
[1764956245332,0.25111955,88807.0,88804.0,0.0117]
[1764956245541,0.01126037,88807.0,88804.0,0.22521361]
[1764956245764,0.01126075,88804.0,88801.0,0.22522136]
[1764956245985,0.00247992,88808.0,88806.0,0.22520768]
[1764956246194,0.044545,88823.0,88818.0,0.01125897]
[1764956246195,0.01125847,88822.0,88818.0,0.01125897]
[1764956246394,0.01125834,88823.0,88821.0,0.01054]
[1764956246802,0.23641326,88828.0,88821.0,0.02179859]
[1764956246803,0.01125783,88827.0,88821.0,0.02179859]
[1764956247008,0.01125783,88827.0,88813.0,0.22519065]
[1764956247009,0.22519863,88811.0,88806.0,0.22520767]
[1764956247214,0.03276,88808.0,88798.0,0.0117]
[1764956247418,0.01633992,88808.0,88807.0,0.00201019]
[1764956247588,0.03523992,88808.0,88807.0,0.00039732]
[1764956248097,0.00247992,88808.0,88807.0,0.00039732]
[1764956248460,0.2364575,88811.0,88807.0,0.00039732]
[1764956248461,0.22768168,88810.0,88807.0,0.00039732]
[1764956248665,0.22768382,88809.0,88807.0,0.00039732]
[1764956248873,0.0189,88808.0,88807.0,0.00039732]
[1764956249045,0.04896992,88808.0,88807.0,0.00039732]
[1764956249445,0.04896992,88808.0,88807.0,0.00339732]
[1764956250075,0.04896992,88808.0,88807.0,0.00039732]
[1764956250277,0.02137992,88808.0,88807.0,0.00039732]
[1764956250517,0.2252039,88809.0,88807.0,0.00039732]
[1764956250728,0.00247992,88808.0,88807.0,0.00039732]
[1764956250931,0.2252039,88809.0,88807.0,0.00039732]
[1764956251260,0.30433463,88809.0,88807.0,0.00039732]
[1764956251600,0.22520367,88809.0,88807.0,0.00201019]
[1764956251778,0.22520176,88810.0,88807.0,0.00201019]
[1764956251989,0.2503108,88814.0,88810.0,0.01125999]
[1764956252448,0.2503108,88814.0,88807.0,0.00201019]
[1764956252449,0.00247992,88813.0,88808.0,0.01126024]
[1764956252605,0.0112591,88817.0,88812.0,0.01125973]
[1764956252809,0.0112591,88817.0,88812.0,0.00161287]
[1764956252810,0.01125935,88815.0,88812.0,0.00161287]
[1764956253014,0.01125935,88815.0,88807.0,0.00039732]
[1764956253015,0.02469961,88813.0,88807.0,0.00039732]
[1764956253461,0.01125961,88813.0,88807.0,0.00039732]
[1764956253664,0.01125961,88813.0,88807.0,0.00201019]
[1764956253665,0.01125999,88810.0,88807.0,0.00201019]
[1764956253908,0.22520458,88809.0,88807.0,0.00201019]
[1764956254105,0.2251854,88816.0,88811.0,0.01125986]
[1764956254251,0.22519334,88813.0,88809.0,0.22520138]
[1764956254684,0.22520333,88809.0,88807.0,0.00201019]
[1764956254895,0.01344,88814.0,88808.0,0.22520493]
[1764956255071,0.22518658,88816.0,88811.0,0.01125986]
[1764956255249,0.2364583,88811.0,88808.0,0.00161287]
[1764956255455,0.01125986,88811.0,88808.0,0.00161287]
[1764956255655,0.22520199,88810.0,88808.0,0.00161287]
[1764956256095,0.01125961,88813.0,88809.0,0.23646089]
[1764956256304,0.23645558,88812.0,88809.0,0.01126012]
[1764956256629,0.2364445,88816.0,88812.0,0.01125973]
[1764956256750,0.01125961,88813.0,88809.0,0.01287299]
[1764956256967,0.23645502,88812.0,88809.0,0.00161287]
[1764956257167,0.23644552,88816.0,88809.0,0.00161287]
[1764956257168,0.22518092,88818.0,88814.0,0.01125948]
[1764956257384,0.01125897,88818.0,88815.0,0.22518551]
[1764956257762,0.01125961,88813.0,88810.0,0.01125999]
[1764956257997,0.01373902,88817.0,88813.0,0.23644969]
[1764956257998,0.0112591,88817.0,88813.0,0.23644969]
[1764956258161,0.22518245,88817.0,88815.0,0.01125935]
[1764956258362,0.01125847,88822.0,88817.0,0.0112591]
[1764956258612,0.01125897,88818.0,88816.0,0.22518424]
[1764956258951,0.23641251,88828.0,88821.0,0.22517197]
[1764956259104,0.02415798,88835.0,88827.0,0.22515676]
[1764956259105,0.23640445,88831.0,88827.0,0.22515676]
[1764956259316,0.01125606,88841.0,88838.0,0.23638405]
[1764956259490,0.01048459,88841.0,88838.0,0.23638257]
[1764956259691,0.01125606,88841.0,88838.0,0.01125644]
[1764956259914,0.23638872,88837.0,88832.0,0.0112572]
[1764956260117,0.02511555,88845.0,88837.0,0.01125657]
[1764956260314,0.2251194,88842.0,88839.0,0.22512635]
[1764956260554,0.00011853,88842.0,88841.0,0.22512128]
[1764956260750,0.01125606,88841.0,88838.0,0.01125644]
[1764956260927,0.00011853,88842.0,88840.0,0.22512358]
[1764956261147,0.00011853,88842.0,88841.0,0.04484]
[1764956261485,0.00011853,88842.0,88841.0,0.0683746]
[1764956261618,0.00011853,88842.0,88841.0,0.04645287]
[1764956262614,0.00011853,88842.0,88841.0,0.01982287]
[1764956263015,0.00011853,88842.0,88841.0,0.04645287]
[1764956263413,0.00011853,88842.0,88841.0,0.10897586]
[1764956263653,0.00011853,88842.0,88841.0,0.13089759]
[1764956264353,0.00011853,88842.0,88841.0,0.13489759]
[1764956264662,0.01125163,88876.0,88841.0,0.45789759]
[1764956264862,0.01124947,88893.0,88889.0,0.01039]
[1764956265066,0.0001193,88893.0,88891.0,0.01124973]
[1764956265237,0.0001193,88893.0,88891.0,0.23624302]
[1764956265939,0.0001193,88893.0,88892.0,0.01821]
[1764956266345,0.0001193,88893.0,88889.0,0.01039]
[1764956266346,0.01136877,88893.0,88889.0,0.02163998]
[1764956266548,0.01136877,88893.0,88879.0,0.02663]
[1764956266549,0.01125011,88888.0,88885.0,0.01125049]
[1764956266757,0.01125011,88888.0,88884.0,0.01039]
[1764956266758,0.22500731,88886.0,88884.0,0.01039]
[1764956267085,0.01125112,88880.0,88878.0,0.01039]
[1764956267311,0.22503262,88876.0,88875.0,0.00161287]
[1764956267524,0.22503033,88877.0,88875.0,0.00161287]
[1764956267683,0.01124973,88891.0,88887.0,0.23625458]
[1764956267896,0.01124973,88891.0,88884.0,0.01792]
[1764956268092,0.01124973,88891.0,88877.0,0.01636]
[1764956268093,0.01124973,88891.0,88887.0,0.23625445]
[1764956268492,0.5,88900.0,88891.0,0.22499341]
[1764956268670,0.5,88900.0,88892.0,0.01636]
[1764956268889,0.5,88900.0,88892.0,0.0645246]
[1764956269090,0.5,88900.0,88892.0,0.04260287]
[1764956269229,0.5,88900.0,88892.0,0.0645246]
[1764956270065,0.5,88900.0,88892.0,0.3875246]
[1764956270414,0.5,88900.0,88892.0,0.45004759]
[1764956271619,0.5,88900.0,88892.0,0.45504759]
[1764956272504,0.5,88900.0,88899.0,0.61049739]
[1764956272739,0.5,88900.0,88899.0,0.66831199]
[1764956272943,0.5,88900.0,88899.0,0.69294199]
[1764956273960,0.5,88900.0,88899.0,0.67102026]
[1764956274271,0.5,88900.0,88899.0,0.24294727]
[1764956274476,0.5,88900.0,88899.0,0.01953287]
[1764956274684,0.79859565,88900.0,88899.0,0.004]
[1764956274896,0.7249744,88900.0,88899.0,0.004]
[1764956275104,0.22498981,88894.0,88891.0,0.01796]
[1764956275316,0.01124872,88899.0,88895.0,0.01124922]
[1764956275530,0.23623916,88894.0,88891.0,0.01796]
[1764956275737,0.01124935,88894.0,88891.0,0.22499409]
[1764956276007,0.01124922,88895.0,88892.0,0.23624084]
[1764956276158,0.22497608,88899.0,88894.0,0.22498557]
[1764956276159,0.22497491,88899.0,88894.0,0.22498557]
[1764956276358,0.01124935,88894.0,88891.0,0.002]
[1764956276703,0.22498254,88896.0,88891.0,0.01324973]
[1764956276845,0.01124922,88895.0,88891.0,0.002]
[1764956277050,0.23623596,88895.0,88891.0,0.22699233]
[1764956277262,0.01124935,88894.0,88891.0,0.23824206]
[1764956277577,0.5,88900.0,88895.0,0.22498453]
[1764956277578,0.73622093,88900.0,88895.0,0.22498453]
[1764956278092,0.2362243,88899.0,88896.0,0.0216391]
[1764956278617,0.2362243,88899.0,88896.0,0.01039]
[1764956278914,0.22497755,88898.0,88896.0,0.01039]
[1764956279119,0.73622111,88900.0,88897.0,0.23622604]
[1764956279282,0.01124947,88893.0,88889.0,0.01796]
[1764956279476,0.01124872,88899.0,88895.0,0.22498418]
[1764956279760,0.13672034,88950.0,88894.0,0.01124935]
[1764956279761,0.03378692,88930.0,88928.0,0.22490104]
[1764956279940,0.00370814,88929.0,88928.0,0.65191863]
[1764956280142,0.00370814,88929.0,88928.0,0.58939564]
[1764956280460,0.00370814,88929.0,88928.0,0.65191863]
[1764956280660,0.00370814,88929.0,88928.0,0.56747391]
[1764956280862,0.00370814,88929.0,88928.0,0.01957287]
[1764956281191,0.00370814,88929.0,88928.0,0.00161287]
[1764956281835,0.00370814,88929.0,88928.0,0.0275346]
[1764956282182,0.00370814,88929.0,88928.0,0.41305759]
[1764956282390,0.0002,88990.0,88928.0,0.41305759]
[1764956282391,0.0126,88966.0,88965.0,0.2248075]
[1764956282614,0.01384726,88966.0,88965.0,0.2248075]
[1764956283213,0.29266256,88966.0,88963.0,0.2248117]
[1764956283492,0.01688,88964.0,88962.0,0.23605583]
[1764956283627,0.00247992,88963.0,88962.0,0.23605583]
[1764956283845,0.00247992,88963.0,88961.0,0.23605682]
[1764956284053,0.04277,88962.0,88928.0,0.06652299]
[1764956284270,0.23611861,88939.0,88934.0,0.23612982]
[1764956284482,0.02812416,88935.0,88929.0,0.22489851]
[1764956284694,0.0126,88940.0,88936.0,0.01124404]
[1764956284695,0.23611808,88939.0,88936.0,0.01124404]
[1764956284901,0.24871457,88940.0,88936.0,0.22488038]
[1764956284902,0.00247992,88938.0,88936.0,0.22488038]
[1764956285109,0.01124479,88930.0,88926.0,0.0112453]
[1764956285340,0.01124479,88930.0,88916.0,0.00161287]
[1764956285341,0.22490486,88927.0,88921.0,0.01124593]
[1764956285550,0.00247992,88926.0,88917.0,0.01124644]
[1764956285816,0.0126,88919.0,88917.0,0.23617506]
[1764956286031,0.02589,88929.0,88917.0,0.23617506]
[1764956286032,0.00011918,88930.0,88928.0,0.22490025]
[1764956287552,0.22490158,88928.0,88926.0,0.002]
[1764956287761,0.22490192,88928.0,88926.0,0.002]
[1764956287968,0.01124492,88929.0,88917.0,0.00161287]
[1764956287969,0.01124568,88923.0,88920.0,0.01124606]
[1764956288171,0.01124581,88922.0,88919.0,0.01124619]
[1764956288599,0.02589,88923.0,88920.0,0.01124606]
[1764956288808,0.03713568,88923.0,88917.0,0.00161287]
[1764956289017,0.2375238,88919.0,88917.0,0.00161287]
[1764956289239,0.01124656,88916.0,88910.0,0.01124732]
[1764956289456,0.01124682,88914.0,88911.0,0.23618986]
[1764956289702,0.2361876,88913.0,88910.0,0.01124732]
[1764956289974,0.22492986,88917.0,88914.0,0.01124682]
[1764956290204,0.25081663,88918.0,88915.0,0.22493392]
[1764956290432,0.01124656,88916.0,88912.0,0.22494042]
[1764956290646,0.23618061,88915.0,88912.0,0.01124707]
[1764956290856,0.23617822,88916.0,88912.0,0.01124707]
[1764956291082,0.02589,88918.0,88916.0,0.22492923]
[1764956291354,0.22488486,88935.0,88928.0,0.2249009]
[1764956291529,0.01796,88934.0,88928.0,0.2249009]
[1764956292097,0.00024397,88937.0,88928.0,0.22651377]
[1764956292470,0.23636633,88937.0,88928.0,0.22651377]
[1764956292670,0.00024397,88937.0,88928.0,0.22651377]
[1764956292845,0.01148788,88937.0,88928.0,0.22651377]
[1764956293086,0.01124467,88931.0,88928.0,0.00161287]
[1764956293291,0.22501612,88930.0,88928.0,0.00161287]
[1764956293500,0.01124593,88921.0,88916.0,0.01124656]
[1764956293720,0.01124517,88927.0,88923.0,0.01124568]
[1764956293931,0.22490892,88925.0,88922.0,0.01124581]
[1764956294056,0.23615211,88926.0,88922.0,0.23616186]
[1764956294406,0.01124707,88912.0,88908.0,0.01124758]
[1764956294638,0.0112472,88911.0,88908.0,0.01124758]
[1764956294808,0.2361782,88916.0,88913.0,0.01124694]
[1764956295026,0.23617944,88916.0,88912.0,0.01124707]
[1764956295403,0.23617944,88916.0,88908.0,0.22495056]
[1764956295404,0.23616086,88923.0,88916.0,0.01124656]
[1764956295606,0.01796,88918.0,88917.0,0.22492381]
[1764956295806,0.24288633,88918.0,88914.0,0.23618078]
[1764956296011,0.01796,88918.0,88915.0,0.01124669]
[1764956296430,0.0241459,88938.0,88915.0,0.01124669]
[1764956296431,0.01124429,88934.0,88924.0,0.01124555]
[1764956296628,0.01124454,88932.0,88928.0,0.22490095]
[1764956297007,0.02172591,88933.0,88929.0,0.22489851]
[1764956297212,0.01124441,88933.0,88929.0,0.22489851]
[1764956297411,0.01048452,88934.0,88919.0,0.224923]
[1764956297708,0.03080397,88937.0,88915.0,0.22654666]
[1764956297709,0.22492398,88919.0,88915.0,0.22654666]
[1764956297892,0.23752398,88919.0,88915.0,0.22654666]
[1764956298096,0.23752398,88919.0,88915.0,0.00161287]
[1764956298767,0.0126,88919.0,88917.0,0.37372648]
[1764956299001,0.23752591,88919.0,88917.0,0.1488]
[1764956299148,0.26769633,88918.0,88917.0,0.1488]
[1764956299356,0.27818796,88918.0,88917.0,0.1488]
[1764956299575,0.30009195,88918.0,88917.0,0.1488]
[1764956300693,0.27818796,88918.0,88917.0,0.1488]
[1764956301977,0.27818796,88918.0,88901.0,0.1488]
[1764956301978,0.22496571,88903.0,88901.0,0.1488]
[1764956302211,0.01124834,88902.0,88899.0,0.01124872]
[1764956302436,0.23621442,88903.0,88898.0,0.01124884]
[1764956302751,0.01124821,88903.0,88900.0,0.22497159]
[1764956302976,0.22496255,88904.0,88899.0,0.23622312]
[1764956303214,0.22496481,88903.0,88899.0,0.23662054]
[1764956303685,0.22496953,88901.0,88899.0,0.01164614]
[1764956303923,0.0126,88900.0,88899.0,0.01164614]
[1764956305303,0.0126,88900.0,88899.0,0.00039742]
[1764956305460,0.0126,88900.0,88899.0,0.22637182]
[1764956308442,0.28034187,88900.0,88899.0,0.00139742]
[1764956311425,0.0126,88900.0,88899.0,0.00139742]
[1764956311625,0.23757187,88900.0,88899.0,0.00139742]
[1764956314271,0.25853187,88900.0,88899.0,0.00139742]
[1764956315286,0.28814187,88900.0,88899.0,0.00139742]
[1764956315494,0.31004586,88900.0,88899.0,0.00139742]
[1764956315903,0.298653,88900.0,88899.0,0.00139742]
[1764956316127,0.34676381,88900.0,88899.0,0.00139742]
[1764956316476,0.3228715,88900.0,88899.0,0.00139742]
[1764956316836,0.3228715,88900.0,88899.0,0.00039742]
[1764956318255,0.298653,88900.0,88899.0,0.00039742]
[1764956320286,0.28814187,88900.0,88899.0,0.00039742]
[1764956321787,0.25853187,88900.0,88899.0,0.00039742]
[1764956321945,0.28814187,88900.0,88899.0,0.00039742]
[1764956323124,0.41721574,88900.0,88899.0,0.00039742]
[1764956323342,0.45194206,88900.0,88899.0,0.00039742]
[1764956324365,0.80507374,88900.0,88899.0,0.00039742]
[1764956324720,0.96213318,88900.0,88899.0,0.00039742]
[1764956325347,0.99340798,88900.0,88899.0,0.00039742]
[1764956325588,0.96313318,88900.0,88899.0,0.00039742]
[1764956327163,0.96313318,88900.0,88847.0,0.23636012]
[1764956327164,0.01125454,88853.0,88847.0,0.23636012]
[1764956327364,0.23633245,88858.0,88847.0,0.00173217]
[1764956327567,0.01125365,88860.0,88854.0,0.01125441]
[1764956327751,0.23633198,88859.0,88854.0,0.01125441]
[1764956327955,0.23633249,88858.0,88855.0,0.2363378]
[1764956328172,0.01125391,88858.0,88856.0,0.22508175]
[1764956328517,0.01125391,88858.0,88847.0,0.00173217]
[1764956328518,0.23634279,88854.0,88852.0,0.22509289]
[1764956328718,0.01125467,88852.0,88849.0,0.01125505]
[1764956328920,0.01125467,88852.0,88848.0,0.01125517]
[1764956328921,0.23635344,88850.0,88847.0,0.00573217]
[1764956329150,0.22510128,88849.0,88847.0,0.00573217]
[1764956329351,0.22508834,88854.0,88847.0,0.00573217]
[1764956329494,0.01125454,88853.0,88849.0,0.01125505]
[1764956329690,0.01125454,88853.0,88849.0,0.23635368]
[1764956329691,0.23634551,88853.0,88849.0,0.23635368]
[1764956329946,0.01125454,88853.0,88850.0,0.01125492]
[1764956330153,0.01125454,88853.0,88850.0,0.23635324]
[1764956330292,0.23634781,88853.0,88850.0,0.23635324]
[1764956330492,0.01125416,88856.0,88853.0,0.22508843]
[1764956330698,0.22508834,88854.0,88853.0,0.00161287]
[1764956331132,0.0147,88857.0,88853.0,0.00161287]
[1764956331133,0.01125403,88857.0,88853.0,0.22670195]
[1764956331293,0.23633987,88856.0,88853.0,0.01286741]
[1764956331800,0.01125403,88857.0,88854.0,0.23634205]
[1764956332051,0.01125327,88863.0,88860.0,0.22507237]
[1764956332225,0.01125289,88866.0,88861.0,0.01125353]
[1764956332422,0.01125277,88867.0,88862.0,0.23632143]
[1764956332653,0.2250546,88868.0,88865.0,0.23631294]
[1764956332860,0.22505814,88866.0,88864.0,0.22506093]
[1764956333078,0.22505814,88866.0,88862.0,0.01286627]
[1764956333079,0.2363135,88865.0,88862.0,0.00161287]
[1764956333281,0.23631165,88866.0,88864.0,0.22506267]
[1764956333488,0.0147,88871.0,88866.0,0.01125289]
[1764956333698,0.01125163,88876.0,88872.0,0.01125213]
[1764956333900,0.0147,88878.0,88872.0,0.01125213]
[1764956333901,0.25098143,88878.0,88874.0,0.01125188]
[1764956334091,0.23628401,88877.0,88873.0,0.23628982]
[1764956334270,0.23628401,88877.0,88872.0,0.00161287]
[1764956334271,0.22503769,88874.0,88872.0,0.00161287]
[1764956334437,0.23628691,88875.0,88872.0,0.22665505]
[1764956334635,0.0147,88884.0,88881.0,0.01125099]
[1764956334839,0.02965,88895.0,88883.0,0.01125074]
[1764956334840,0.01124985,88890.0,88883.0,0.01125074]
[1764956335062,0.23624714,88890.0,88886.0,0.01125036]
[1764956335302,0.0147,88892.0,88891.0,0.22499465]
[1764956335507,0.0147,88901.0,88899.0,0.22497359]
[1764956335712,0.0147,88906.0,88903.0,0.01124821]
[1764956335909,0.0147,88906.0,88898.0,0.01124884]
[1764956335910,0.23620782,88905.0,88898.0,0.01124884]
[1764956336061,0.0147,88906.0,88872.0,0.016955]
[1764956336062,0.01124897,88897.0,88893.0,0.01124947]
[1764956336264,0.0147,88899.0,88896.0,0.0112491]
[1764956336517,0.0147,88899.0,88897.0,0.22497901]
[1764956336811,0.02594783,88906.0,88903.0,0.01124821]
[1764956336812,0.0147,88906.0,88903.0,0.01124821]
[1764956336959,0.0147,88906.0,88900.0,0.01124859]
[1764956336960,0.22496239,88904.0,88901.0,0.01124846]
[1764956337152,0.0147,88906.0,88903.0,0.22496428]
[1764956337371,0.0147,88906.0,88903.0,0.01124821]
[1764956337701,0.0147,88906.0,88905.0,0.22495922]
[1764956338222,0.0147,88906.0,88904.0,0.22495942]
[1764956338584,0.0147,88906.0,88902.0,0.22496677]
[1764956338784,0.01124808,88904.0,88901.0,0.00161287]
[1764956339171,0.22496681,88902.0,88901.0,0.00161287]
[1764956339366,0.01124808,88904.0,88901.0,0.00161287]
[1764956339588,0.22496469,88903.0,88901.0,0.00161287]
[1764956339842,0.23620983,88904.0,88901.0,0.00161287]
[1764956340208,0.0147,88906.0,88903.0,0.01124821]
[1764956340443,0.23614143,88930.0,88925.0,0.01124543]
[1764956340644,0.23616202,88922.0,88917.0,0.01124644]
[1764956340809,0.23616598,88921.0,88917.0,0.2361744]
[1764956341018,0.02036,88918.0,88916.0,0.22492948]
[1764956341242,0.01124581,88922.0,88916.0,0.22492948]
[1764956341243,0.01124429,88934.0,88926.0,0.22490546]
[1764956341442,0.01124429,88934.0,88928.0,0.01124505]
[1764956341660,0.00039767,88934.0,88932.0,0.22488854]
[1764956342096,0.00039767,88934.0,88931.0,0.01124467]
[1764956342288,0.02036,88932.0,88929.0,0.01124492]
[1764956342505,0.01124441,88933.0,88928.0,0.00161287]
[1764956342699,0.00039767,88934.0,88928.0,0.00161287]
[1764956342847,0.00039767,88934.0,88932.0,0.22489079]
[1764956343217,0.22492596,88919.0,88912.0,0.22494151]
[1764956343499,0.00039767,88934.0,88931.0,0.01124467]
[1764956343701,0.22528464,88934.0,88928.0,0.01124505]
[1764956343854,0.23652893,88934.0,88930.0,0.23614035]
[1764956344099,0.23613461,88933.0,88930.0,0.01124479]
[1764956344299,0.01124441,88933.0,88929.0,0.01124492]
[1764956344516,0.00039767,88934.0,88933.0,0.22488839]
[1764956345560,0.00039767,88934.0,88933.0,0.22650126]
[1764956346137,0.23602892,88973.0,88968.0,0.01123999]
[1764956346338,0.00011927,88973.0,88972.0,0.23602733]
[1764956346736,0.00011927,88973.0,88971.0,0.23603008]
[1764956347038,0.00011927,88973.0,88968.0,0.01123999]
[1764956347323,0.00011927,88973.0,88950.0,0.74100771]
[1764956347324,0.23604323,88967.0,88963.0,0.22481089]
[1764956347501,0.01868,88962.0,88937.0,0.02192173]
[1764956347708,0.23606593,88959.0,88956.0,0.01124151]
[1764956348028,0.01124088,88961.0,88957.0,0.22482642]
[1764956348230,0.01124088,88961.0,88956.0,0.01124151]
[1764956348231,0.01124012,88967.0,88964.0,0.0112405]
[1764956348442,0.2247804,88976.0,88964.0,0.0112405]
[1764956348443,0.01123923,88974.0,88970.0,0.01123974]
[1764956348583,0.01123974,88970.0,88967.0,0.22480032]
[1764956348778,0.01414,88978.0,88971.0,0.22479031]
[1764956348980,0.01123898,88976.0,88971.0,0.22479031]
[1764956349246,0.01123911,88975.0,88971.0,0.22479031]
[1764956349653,0.02537873,88978.0,88971.0,0.22479031]
[1764956349811,0.23601969,88976.0,88971.0,0.22479031]
[1764956350017,0.22478426,88975.0,88971.0,0.22479099]
[1764956350219,0.23602107,88976.0,88971.0,0.22479099]
[1764956350423,0.01123885,88977.0,88971.0,0.22479099]
[1764956350630,0.01123898,88976.0,88971.0,0.22479099]
[1764956350975,0.22480597,88966.0,88959.0,0.01124113]
[1764956351313,0.00247992,88975.0,88957.0,0.38486842]
[1764956351314,0.22478037,88976.0,88964.0,0.01285337]
[1764956351461,0.02537873,88978.0,88971.0,0.22478998]
[1764956351629,0.25015409,88978.0,88971.0,0.22478998]
[1764956351829,0.01123784,88985.0,88971.0,0.22640285]
[1764956352068,0.02537759,88987.0,88972.0,0.00161287]
[1764956352476,0.01123797,88984.0,88972.0,0.00161287]
[1764956352681,0.01123822,88982.0,88972.0,0.00161287]
[1764956352892,0.01143721,88990.0,88972.0,0.00161287]
[1764956353096,0.01123747,88988.0,88972.0,0.00161287]
[1764956353498,0.01123759,88987.0,88972.0,0.00161287]
[1764956353915,0.01123772,88986.0,88972.0,0.00161287]
[1764956354144,0.01123822,88982.0,88972.0,0.00161287]
[1764956354335,0.22490656,88973.0,88972.0,0.00161287]
[1764956354632,0.00011927,88973.0,88972.0,0.00161287]